fUSD/lending_fUSD_20250305
["ID","MTS","AMOUNT","RATE_DAILY","PERIOD"]
[355490869,1741203046152,-590.9,0.00011264,2]
[355490871,1741203046165,-500.0,0.00011264,2]
[355490873,1741203046174,-500.0,0.00011264,2]
[355490875,1741203046184,-500.0,0.00011264,2]
[355490876,1741203046194,-500.0,0.00011264,2]
[355490878,1741203046205,-500.0,0.00011264,2]
[355490880,1741203046215,-500.0,0.00011264,2]
[355490882,1741203046224,-500.0,0.00011264,2]
[355490884,1741203046233,-500.0,0.00011264,2]
[355490886,1741203046247,-500.0,0.00011264,2]
[355490888,1741203046257,-186.75053209,0.00011264,2]
[355490890,1741203046267,-500.0,0.00011264,2]
[355490892,1741203046276,-500.0,0.00011264,2]
[355490894,1741203046286,-500.0,0.00011264,2]
[355490896,1741203046295,-500.0,0.00011264,2]
[355490898,1741203046305,-500.0,0.00011264,2]
[355490900,1741203046314,-500.0,0.00011264,2]
[355490901,1741203046323,-500.0,0.00011264,2]
[355490902,1741203046333,-500.0,0.00011264,2]
[355490903,1741203046343,-500.0,0.00011264,2]
[355490904,1741203046351,-500.0,0.00011264,2]
[355490905,1741203046361,-983.96,0.00011264,2]
[355490906,1741203046370,-1026.26,0.00011264,2]
[355490907,1741203046379,-1019.35,0.00011264,2]
[355490908,1741203046388,-500.0,0.00011264,2]
[355490909,1741203046397,-500.0,0.00011264,2]
[355490910,1741203046406,-1297.12,0.00011264,2]
[355490911,1741203046415,-1504.3,0.00011264,2]
[355490912,1741203046424,-500.0,0.00011264,2]
[355490913,1741203046432,-1223.37,0.00011264,2]
[355490914,1741203046443,-2641.43,0.00011264,2]
[355490915,1741203046452,-15814.7,0.00011264,2]
[355490916,1741203046461,-500.0,0.00011264,2]
[355490917,1741203046470,-1449.76,0.00011264,2]
[355490918,1741203046479,-500.0,0.00011264,2]
[355490919,1741203046488,-542.78,0.00011264,2]
[355490920,1741203046497,-2238.1,0.00011264,2]
[355490921,1741203046507,-500.0,0.00011264,2]
[355490923,1741203046516,-8051.01232422,0.00011264,2]
[355490970,1741203048490,-500.0,0.00010988,2]
[355490971,1741203048500,-51.56925057,0.00011262,2]
[355490972,1741203048515,-448.43074943,0.00011262,2]
[355490973,1741203048524,-500.0,0.00011262,2]
[355490974,1741203048532,-791.69013885,0.00011264,2]
[355490975,1741203049126,-1077.5,0.00011264,2]
[355490976,1741203049137,-1029.04763947,0.00011264,2]
[355490977,1741203257322,14146.33,0.00010074,2]
[355490978,1741203313990,152.0,0.00010074,3]
[355490979,1741203315414,1000.0,0.00010014,2]
[355490980,1741203325779,250.0,0.00010014,2]
[355490981,1741203368647,249.0,0.000201,120]
[355490982,1741203415533,625.95,9.969e-05,2]
[355490983,1741203437320,1247.35,0.0001,2]
[355490984,1741203590814,160.35,9.991e-05,2]
[355490985,1741203607060,152.0,0.00010074,3]
[355490986,1741203698664,939.96,8.219e-05,2]
[355490987,1741203914048,152.0,0.00010074,3]
[355490988,1741204034314,790.18,9.87e-05,2]
[355490989,1741204042273,527.6,9.89e-05,2]
[355490990,1741204094832,48355.78336793,0.000101,2]
[355490994,1741204207682,152.0,0.00010074,3]
[355491010,1741204232154,-170.04,0.00010265,2]
[355491011,1741204232164,-620.62,0.00010359,2]
[355491012,1741204232174,-620.62,0.00010403,2]
[355491013,1741204232183,-620.62,0.00010446,2]
[355491014,1741204232192,-7291.65531088,0.00010473,2]
[355491015,1741204232202,-939.96,0.00010473,2]
[355491016,1741204232212,-620.62,0.0001049,2]
[355491017,1741204232222,-620.62,0.00010534,2]
[355491018,1741204232232,-1580.11747544,0.00010545,2]
[355491019,1741204232241,-1580.11747544,0.00010545,2]
[355491020,1741204232251,-150.0,0.00010548,2]
[355491021,1741204232261,-620.62,0.00010577,2]
[355491022,1741204232271,-620.62,0.00010621,2]
[355491023,1741204232280,-620.62,0.00010665,2]
[355491024,1741204232290,-620.62,0.00010708,2]
[355491025,1741204232299,-620.62,0.00010752,2]
[355491026,1741204232308,-620.62,0.00010795,2]
[355491027,1741204232317,-620.62,0.00010839,2]
[355491028,1741204232327,-620.62,0.00010883,2]
[355491029,1741204232336,-150.0,0.00010887,2]
[355491030,1741204232345,-832.8768,0.00010887,2]
[355491031,1741204232355,-500.0,0.00010888,2]
[355491032,1741204232364,-2164.5298,0.00010888,2]
[355491033,1741204232373,-20191.89308629,0.00010888,2]
[355491034,1741204232385,-975.63086824,0.00010888,2]
[355491035,1741204232396,-536.70986734,0.00010888,2]
[355491038,1741204232433,-11171.59247813,0.00010888,2]
[355491040,1741204232443,-5000.0,0.00010888,2]
[355491042,1741204232452,-316.99209794,0.00010888,2]
[355491044,1741204232461,-620.62,0.00010926,2]
[355491046,1741204232470,-150.0,0.00010959,2]
[355491048,1741204232479,-620.62,0.0001097,2]
[355491050,1741204232489,-93.53082393,0.00010973,2]
[355491054,1741204232527,-66.74526752,0.00010973,2]
[355491056,1741204232538,-197.38349905,0.00010973,2]
[355491058,1741204232547,-500.0,0.00010986,2]
[355491060,1741204232557,-92.87123343,0.00010986,2]
[355491412,1741204238045,-676.32876657,0.00010986,2]
[355491413,1741204238054,-815.25,0.00010986,2]
[355491414,1741204238064,-500.0,0.00010986,2]
[355491415,1741204238074,-500.0,0.00010986,2]
[355491416,1741204238083,-240.51603779,0.00010986,2]
[355491417,1741204238092,-422.53735929,0.00010986,2]
[355491418,1741204238102,-500.0,0.00010987,2]
[355491419,1741204238111,-520.4,0.00010987,2]
[355491420,1741204238120,-500.0,0.00010987,2]
[355491421,1741204238130,-500.0,0.00010987,2]
[355491422,1741204238139,-500.0,0.00010987,2]
[355491423,1741204238148,-604.69,0.00010987,2]
[355491424,1741204238158,-500.0,0.00010987,2]
[355491425,1741204238167,-500.0,0.00010987,2]
[355491426,1741204238175,-500.0,0.00010987,2]
[355491427,1741204238184,-500.0,0.00010987,2]
[355491428,1741204238193,-724.15,0.00010987,2]
[355491429,1741204238203,-500.0,0.00010987,2]
[355491430,1741204238212,-500.0,0.00010987,2]
[355491431,1741204238221,-500.0,0.00010987,2]
[355491432,1741204238230,-500.0,0.00010987,2]
[355491433,1741204238239,-500.0,0.00010987,2]
[355491434,1741204238248,-500.0,0.00010987,2]
[355491435,1741204238256,-500.0,0.00010987,2]
[355491436,1741204238265,-500.0,0.00010987,2]
[355491437,1741204238274,-500.0,0.00010987,2]
[355491438,1741204238283,-550.59,0.00010987,2]
[355491439,1741204238292,-500.0,0.00010987,2]
[355491440,1741204238301,-212.02197387,0.00010987,2]
[355491441,1741204238310,-500.0,0.00010987,2]
[355491442,1741204238318,-500.0,0.00010987,2]
[355491443,1741204238327,-500.0,0.00010987,2]
[355491444,1741204238335,-158.84117657,0.00010987,2]
[355491446,1741204238344,-500.0,0.00010987,2]
[355491448,1741204238353,-500.0,0.00010987,2]
[355491450,1741204238361,-500.0,0.00010987,2]
[355491452,1741204238369,-500.0,0.00010987,2]
[355491453,1741204238375,-500.0,0.00010987,2]
[355491454,1741204238384,-500.0,0.00010987,2]
[355491455,1741204238391,-500.0,0.00010987,2]
[355491457,1741204238399,-671.5,0.00010987,2]
[355491459,1741204238409,-500.0,0.00010987,2]
[355491461,1741204238417,-500.0,0.00010987,2]
[355491464,1741204238426,-639.14,0.00010987,2]
[355491466,1741204238435,-500.0,0.00010987,2]
[355491468,1741204238444,-1003.707596,0.00010987,2]
[355491470,1741204238454,-637.96,0.00010987,2]
[355491472,1741204238463,-500.41278375,0.00010987,2]
[355491474,1741204238472,-500.0,0.00010987,2]
[355491476,1741204238482,-158.041163,0.00010987,2]
[355491478,1741204238491,-150.612379,0.00010987,2]
[355491480,1741204238500,-500.0,0.00010987,2]
[355491482,1741204238509,-500.0,0.00010987,2]
[355491484,1741204238518,-500.0,0.00010987,2]
[355491486,1741204238527,-500.0,0.00010987,2]
[355491488,1741204238538,-500.0,0.00010987,2]
[355491490,1741204238547,-500.0,0.00010987,2]
[355491492,1741204238556,-500.0,0.00010987,2]
[355491494,1741204238566,-500.0,0.00010987,2]
[355491496,1741204238575,-500.0,0.00010987,2]
[355491498,1741204238584,-756.999678,0.00010987,2]
[355491500,1741204238593,-500.0,0.00010987,2]
[355491502,1741204238601,-500.0,0.00010987,2]
[355491504,1741204238611,-500.0,0.00010987,2]
[355491506,1741204238620,-500.0,0.00010987,2]
[355491508,1741204238628,-500.0,0.00010987,2]
[355491510,1741204238637,-500.0,0.00010987,2]
[355491512,1741204238646,-1152.59,0.00010987,2]
[355491513,1741204238655,-500.0,0.00010987,2]
[355491515,1741204238664,-647.81,0.00010987,2]
[355491517,1741204238673,-500.0,0.00010987,2]
[355491519,1741204238682,-500.0,0.00010987,2]
[355491521,1741204238692,-843.07,0.00010987,2]
[355491523,1741204238701,-617.9,0.00010987,2]
[355491525,1741204238710,-500.0,0.00010987,2]
[355491527,1741204238720,-500.0,0.00010987,2]
[355491529,1741204238729,-500.0,0.00010987,2]
[355491531,1741204238738,-500.0,0.00010987,2]
[355491533,1741204238747,-500.0,0.00010987,2]
[355491535,1741204238757,-657.93,0.00010987,2]
[355491537,1741204238766,-500.0,0.00010987,2]
[355491539,1741204238775,-500.0,0.00010987,2]
[355491541,1741204238784,-500.0,0.00010987,2]
[355491543,1741204238793,-542.36,0.00010987,2]
[355491545,1741204238802,-500.0,0.00010987,2]
[355491547,1741204238811,-850.28,0.00010987,2]
[355491549,1741204238821,-501.61353285,0.00010987,2]
[355491551,1741204238830,-500.0,0.00010987,2]
[355491553,1741204238839,-519.60051827,0.00010987,2]
[355491555,1741204238847,-500.0,0.00010987,2]
[355491557,1741204238856,-500.0,0.00010987,2]
[355491559,1741204238866,-500.0,0.00010987,2]
[355491561,1741204238875,-500.0,0.00010987,2]
[355491563,1741204238884,-668.59,0.00010987,2]
[355491565,1741204238892,-500.0,0.00010987,2]
[355491567,1741204238903,-500.0,0.00010987,2]
[355491569,1741204238912,-500.0,0.00010987,2]
[355491571,1741204238921,-500.0,0.00010987,2]
[355491573,1741204238930,-500.0,0.00010987,2]
[355491575,1741204238939,-500.0,0.00010987,2]
[355491577,1741204238949,-500.0,0.00010987,2]
[355491579,1741204238959,-764.46,0.00010987,2]
[355491581,1741204238968,-500.0,0.00010987,2]
[355491582,1741204238977,-500.0,0.00010987,2]
[355491583,1741204238986,-500.0,0.00010987,2]
[355491584,1741204238995,-500.0,0.00010987,2]
[355491585,1741204239003,-500.0,0.00010987,2]
[355491586,1741204239012,-500.0,0.00010987,2]
[355491587,1741204239021,-500.0,0.00010987,2]
[355491588,1741204239030,-500.0,0.00010987,2]
[355491589,1741204239039,-500.0,0.00010987,2]
[355491590,1741204239048,-500.0,0.00010987,2]
[355491610,1741204239289,-500.0,0.00010987,2]
[355491612,1741204239298,-500.0,0.00010987,2]
[355491614,1741204239307,-527.57,0.00010987,2]
[355491616,1741204239316,-500.0,0.00010987,2]
[355491618,1741204239326,-500.0,0.00010987,2]
[355491620,1741204239335,-500.0,0.00010987,2]
[355491622,1741204239344,-500.0,0.00010987,2]
[355491624,1741204239353,-500.0,0.00010987,2]
[355491626,1741204239363,-500.0,0.00010987,2]
[355491628,1741204239372,-500.0,0.00010987,2]
[355491630,1741204239381,-639.35,0.00010987,2]
[355491632,1741204239391,-500.0,0.00010987,2]
[355491634,1741204239401,-616.9,0.00010987,2]
[355491636,1741204239411,-5869.93,0.00010987,2]
[355491638,1741204239421,-500.0,0.00010987,2]
[355491640,1741204239430,-625.74,0.00010987,2]
[355491642,1741204239439,-551.13,0.00010987,2]
[355491644,1741204239448,-500.0,0.00010987,2]
[355491646,1741204239457,-500.0,0.00010987,2]
[355491648,1741204239466,-500.0,0.00010987,2]
[355491650,1741204239475,-500.0,0.00010987,2]
[355491652,1741204239484,-500.0,0.00010987,2]
[355491654,1741204239492,-500.0,0.00010987,2]
[355491656,1741204239501,-572.95,0.00010987,2]
[355491658,1741204239511,-500.0,0.00010987,2]
[355491660,1741204239522,-500.0,0.00010987,2]
[355491662,1741204239532,-500.0,0.00010987,2]
[355491664,1741204239541,-816.99,0.00010987,2]
[355491666,1741204239551,-500.0,0.00010987,2]
[355491668,1741204239560,-500.0,0.00010987,2]
[355491670,1741204239569,-500.0,0.00010987,2]
[355491672,1741204239579,-1182.01,0.00010987,2]
[355491674,1741204239588,-500.0,0.00010987,2]
[355491676,1741204239599,-500.0,0.00010987,2]
[355491678,1741204239608,-500.0,0.00010987,2]
[355491680,1741204239618,-500.0,0.00010987,2]
[355491682,1741204239627,-500.0,0.00010987,2]
[355491684,1741204239637,-500.0,0.00010987,2]
[355491686,1741204239646,-500.0,0.00010987,2]
[355491688,1741204239656,-899.32,0.00010987,2]
[355491690,1741204239665,-500.0,0.00010987,2]
[355491692,1741204239675,-500.0,0.00010987,2]
[355491694,1741204239684,-1848.73,0.00010987,2]
[355491696,1741204239694,-2027.5,0.00010987,2]
[355491698,1741204239705,-500.0,0.00010987,2]
[355491699,1741204239714,-873.26,0.00010987,2]
[355491701,1741204239723,-500.0,0.00010987,2]
[355491703,1741204239732,-524.19,0.00010987,2]
[355491705,1741204239741,-500.0,0.00010987,2]
[355491707,1741204239750,-500.0,0.00010987,2]
[355491710,1741204239762,-500.0,0.00010987,2]
[355491712,1741204239771,-500.0,0.00010987,2]
[355491714,1741204239780,-3937.63,0.00010987,2]
[355491716,1741204239790,-922.97,0.00010987,2]
[355491718,1741204239799,-500.0,0.00010987,2]
[355491719,1741204239809,-500.0,0.00010987,2]
[355491722,1741204239819,-1074.45,0.00010987,2]
[355491724,1741204239828,-500.0,0.00010987,2]
[355491726,1741204239837,-1778.95,0.00010987,2]
[355491728,1741204239846,-500.0,0.00010987,2]
[355491730,1741204239855,-500.0,0.00010987,2]
[355491732,1741204239865,-500.0,0.00010987,2]
[355491734,1741204239874,-3319.18,0.00010987,2]
[355491736,1741204239883,-1326.5,0.00010987,2]
[355491738,1741204239892,-500.0,0.00010987,2]
[355491740,1741204239901,-500.0,0.00010987,2]
[355491742,1741204239912,-500.0,0.00010987,2]
[355491744,1741204239922,-525.71296828,0.00010987,2]
[355491746,1741204239930,-500.0,0.00010987,2]
[355491748,1741204239939,-3863.19,0.00010987,2]
[355491750,1741204239948,-500.0,0.00010987,2]
[355491752,1741204239957,-500.0,0.00010987,2]
[355491754,1741204239967,-500.0,0.00010987,2]
[355491756,1741204239975,-500.0,0.00010987,2]
[355491758,1741204239984,-500.0,0.00010987,2]
[355491760,1741204239994,-500.0,0.00010987,2]
[355491762,1741204240003,-500.0,0.00010987,2]
[355491764,1741204240012,-500.0,0.00010987,2]
[355491766,1741204240021,-500.0,0.00010987,2]
[355491768,1741204240031,-851.93,0.00010987,2]
[355491770,1741204240040,-500.0,0.00010987,2]
[355491772,1741204240049,-1104.86,0.00010987,2]
[355491774,1741204240058,-618.59,0.00010987,2]
[355491776,1741204240067,-500.0,0.00010987,2]
[355491778,1741204240075,-3235.42,0.00010987,2]
[355491780,1741204240084,-500.0,0.00010987,2]
[355491782,1741204240093,-500.0,0.00010987,2]
[355491784,1741204240102,-500.0,0.00010987,2]
[355491786,1741204240111,-500.0,0.00010987,2]
[355491788,1741204240120,-500.0,0.00010987,2]
[355491790,1741204240130,-500.0,0.00010987,2]
[355491792,1741204240139,-717.85,0.00010987,2]
[355491794,1741204240149,-500.0,0.00010987,2]
[355491796,1741204240160,-500.0,0.00010987,2]
[355491798,1741204240169,-500.0,0.00010987,2]
[355491800,1741204240179,-500.0,0.00010987,2]
[355491802,1741204240188,-500.0,0.00010987,2]
[355491804,1741204240197,-500.0,0.00010987,2]
[355491806,1741204240206,-1023.25,0.00010987,2]
[355491808,1741204240215,-500.0,0.00010987,2]
[355491809,1741204240224,-3284.31,0.00010987,2]
[355491812,1741204240233,-500.0,0.00010987,2]
[355491814,1741204240243,-500.0,0.00010987,2]
[355491816,1741204240252,-3341.2,0.00010987,2]
[355491818,1741204240261,-500.0,0.00010987,2]
[355491819,1741204240270,-193.64033179,0.00010987,2]
[355491821,1741204240279,-500.0,0.00010987,2]
[355491823,1741204240288,-500.0,0.00010987,2]
[355491825,1741204240298,-1219.23,0.00010987,2]
[355491827,1741204240307,-500.0,0.00010987,2]
[355491829,1741204240317,-1621.51,0.00010987,2]
[355491831,1741204240326,-1220.73,0.00010987,2]
[355491833,1741204240335,-500.0,0.00010987,2]
[355491835,1741204240344,-503.12972958,0.00010987,2]
[355491837,1741204240353,-506.19,0.00010987,2]
[355491839,1741204240364,-661.02,0.00010987,2]
[355491841,1741204240373,-500.0,0.00010987,2]
[355491843,1741204240382,-500.0,0.00010987,2]
[355491845,1741204240392,-1099.86,0.00010987,2]
[355491847,1741204240401,-500.0,0.00010987,2]
[355491849,1741204240413,-749.07,0.00010987,2]
[355491852,1741204240424,-500.0,0.00010987,2]
[355491854,1741204240432,-194.18173242,0.00010987,2]
[355491855,1741204240442,-500.0,0.00010987,2]
[355491858,1741204240451,-500.0,0.00010987,2]
[355491859,1741204240460,-500.0,0.00010987,2]
[355491861,1741204240469,-555.15,0.00010987,2]
[355491863,1741204240479,-500.0,0.00010987,2]
[355491865,1741204240488,-336.25330913,0.00010987,2]
[355491867,1741204240497,-968.67,0.00010987,2]
[355491869,1741204240506,-500.0,0.00010987,2]
[355491871,1741204240516,-500.0,0.00010987,2]
[355491873,1741204240525,-500.0,0.00010987,2]
[355491875,1741204240537,-500.0,0.00010987,2]
[355491877,1741204240546,-604.78,0.00010987,2]
[355491879,1741204240555,-500.0,0.00010987,2]
[355491881,1741204240564,-767.02,0.00010987,2]
[355491883,1741204240575,-506.97063219,0.00010987,2]
[355491885,1741204240584,-778.03,0.00010987,2]
[355491887,1741204240594,-262.38192951,0.00010987,2]
[355491889,1741204240603,-500.0,0.00010987,2]
[355491891,1741204240614,-1967.24,0.00010987,2]
[355491893,1741204240625,-500.0,0.00010987,2]
[355491895,1741204240634,-500.0,0.00010987,2]
[355491897,1741204240643,-500.0,0.00010987,2]
[355491899,1741204240654,-500.0,0.00010987,2]
[355491901,1741204240663,-500.0,0.00010987,2]
[355491903,1741204240672,-500.0,0.00010987,2]
[355491905,1741204240682,-3989.63,0.00010987,2]
[355491907,1741204240692,-1320.59,0.00010987,2]
[355491909,1741204240701,-500.0,0.00010987,2]
[355491911,1741204240710,-1081.83,0.00010987,2]
[355491913,1741204240720,-530.1,0.00010987,2]
[355491915,1741204240729,-500.0,0.00010987,2]
[355491917,1741204240738,-500.0,0.00010987,2]
[355491919,1741204240746,-1255.12,0.00010987,2]
[355491921,1741204240756,-1154.31,0.00010987,2]
[355491923,1741204240765,-500.0,0.00010987,2]
[355491925,1741204240773,-500.0,0.00010987,2]
[355491927,1741204240782,-500.0,0.00010987,2]
[355491929,1741204240790,-979.38,0.00010987,2]
[355491931,1741204240799,-500.0,0.00010987,2]
[355491933,1741204240808,-500.0,0.00010987,2]
[355491935,1741204240818,-500.0,0.00010987,2]
[355491937,1741204240827,-502.46278042,0.00010987,2]
[355491939,1741204240835,-751.94,0.00010987,2]
[355491941,1741204240844,-500.0,0.00010987,2]
[355491943,1741204240853,-500.0,0.00010987,2]
[355491945,1741204240861,-500.0,0.00010987,2]
[355491947,1741204240871,-500.0,0.00010987,2]
[355491949,1741204240881,-916.43,0.00010987,2]
[355491951,1741204240889,-500.0,0.00010987,2]
[355491953,1741204240899,-500.0,0.00010987,2]
[355491955,1741204240910,-1419.21,0.00010987,2]
[355491957,1741204240919,-500.0,0.00010987,2]
[355491959,1741204240928,-500.0,0.00010987,2]
[355491961,1741204240937,-1451.12,0.00010987,2]
[355491963,1741204240945,-793.95,0.00010987,2]
[355491965,1741204240953,-500.0,0.00010987,2]
[355491967,1741204240961,-500.0,0.00010987,2]
[355491969,1741204240970,-513.01190678,0.00010987,2]
[355491971,1741204240980,-611.93,0.00010987,2]
[355491973,1741204240990,-500.0,0.00010987,2]
[355491975,1741204240999,-500.0,0.00010987,2]
[355491977,1741204241008,-500.0,0.00010987,2]
[355491979,1741204241018,-500.0,0.00010987,2]
[355491981,1741204241028,-500.0,0.00010987,2]
[355491983,1741204241037,-500.0,0.00010987,2]
[355491985,1741204241046,-500.0,0.00010987,2]
[355491987,1741204241055,-6900.12,0.00010987,2]
[355491989,1741204241064,-500.0,0.00010987,2]
[355491991,1741204241073,-500.0,0.00010987,2]
[355491993,1741204241083,-500.0,0.00010987,2]
[355491995,1741204241092,-500.0,0.00010987,2]
[355491997,1741204241101,-500.0,0.00010987,2]
[355491998,1741204241109,-506.52505505,0.00010987,2]
[355492001,1741204241118,-726.0,0.00010987,2]
[355492002,1741204241128,-970.59,0.00010987,2]
[355492005,1741204241138,-800.54,0.00010987,2]
[355492007,1741204241147,-500.0,0.00010987,2]
[355492009,1741204241158,-500.0,0.00010987,2]
[355492011,1741204241167,-576.19,0.00010987,2]
[355492013,1741204241176,-1013.37,0.00010987,2]
[355492015,1741204241185,-500.0,0.00010987,2]
[355492017,1741204241194,-500.0,0.00010987,2]
[355492019,1741204241203,-500.0,0.00010987,2]
[355492021,1741204241212,-500.0,0.00010987,2]
[355492023,1741204241221,-1069.88,0.00010987,2]
[355492024,1741204241230,-500.0,0.00010987,2]
[355492026,1741204241239,-500.0,0.00010987,2]
[355492028,1741204241248,-500.0,0.00010987,2]
[355492030,1741204241257,-500.0,0.00010987,2]
[355492032,1741204241266,-500.0,0.00010987,2]
[355492034,1741204241275,-500.0,0.00010987,2]
[355492036,1741204241284,-500.0,0.00010987,2]
[355492038,1741204241293,-2105.55,0.00010987,2]
[355492040,1741204241304,-500.0,0.00010987,2]
[355492043,1741204241313,-891.86,0.00010987,2]
[355492044,1741204241322,-1411.97,0.00010987,2]
[355492046,1741204241331,-703.99,0.00010987,2]
[355492048,1741204241340,-500.0,0.00010987,2]
[355492050,1741204241348,-500.0,0.00010987,2]
[355492052,1741204241358,-500.0,0.00010987,2]
[355492054,1741204241366,-336.15408375,0.00010987,2]
[355492056,1741204241376,-739.98,0.00010987,2]
[355492058,1741204241385,-999.07,0.00010987,2]
[355492060,1741204241394,-501.56737192,0.00010987,2]
[355492062,1741204241405,-500.0,0.00010987,2]
[355492064,1741204241415,-1337.85,0.00010987,2]
[355492066,1741204241424,-502.76420393,0.00010987,2]
[355492068,1741204241434,-500.0,0.00010987,2]
[355492070,1741204241444,-500.0,0.00010987,2]
[355492072,1741204241453,-552.29171034,0.00010987,2]
[355492074,1741204241463,-500.0,0.00010987,2]
[355492076,1741204241473,-500.0,0.00010987,2]
[355492078,1741204241482,-500.0,0.00010987,2]
[355492080,1741204241491,-500.0,0.00010987,2]
[355492082,1741204241500,-506.49966988,0.00010987,2]
[355492084,1741204241509,-500.0,0.00010987,2]
[355492086,1741204241519,-920.51,0.00010987,2]
[355492089,1741204241531,-500.0,0.00010987,2]
[355492091,1741204241541,-500.0,0.00010987,2]
[355492093,1741204241551,-500.0,0.00010987,2]
[355492095,1741204241560,-500.0,0.00010987,2]
[355492097,1741204241570,-502.21568264,0.00010987,2]
[355492099,1741204241580,-500.0,0.00010987,2]
[355492101,1741204241590,-652.16,0.00010987,2]
[355492103,1741204241599,-500.0,0.00010987,2]
[355492105,1741204241609,-500.0,0.00010987,2]
[355492107,1741204241619,-500.0,0.00010987,2]
[355492109,1741204241628,-500.0,0.00010987,2]
[355492111,1741204241637,-1136.06,0.00010987,2]
[355492113,1741204241646,-500.0,0.00010987,2]
[355492115,1741204241656,-500.0,0.00010987,2]
[355492117,1741204241665,-500.0,0.00010987,2]
[355492119,1741204241677,-504.9726649,0.00010987,2]
[355492121,1741204241685,-500.0,0.00010987,2]
[355492123,1741204241694,-500.0,0.00010987,2]
[355492125,1741204241703,-500.0,0.00010987,2]
[355492127,1741204241712,-1327.48,0.00010987,2]
[355492129,1741204241720,-500.0,0.00010987,2]
[355492131,1741204241729,-7674.84,0.00010987,2]
[355492133,1741204241738,-606.92,0.00010987,2]
[355492135,1741204241748,-501.93513888,0.00010987,2]
[355492137,1741204241757,-500.0,0.00010987,2]
[355492139,1741204241766,-500.0,0.00010987,2]
[355492141,1741204241775,-500.0,0.00010987,2]
[355492143,1741204241783,-500.0,0.00010987,2]
[355492145,1741204241792,-500.0,0.00010987,2]
[355492147,1741204241801,-518.05,0.00010987,2]
[355492149,1741204241810,-500.0,0.00010987,2]
[355492151,1741204241819,-500.0,0.00010987,2]
[355492153,1741204241828,-500.0,0.00010987,2]
[355492155,1741204241843,-500.0,0.00010987,2]
[355492157,1741204241854,-500.0,0.00010987,2]
[355492159,1741204241865,-500.0,0.00010987,2]
[355492161,1741204241877,-500.0,0.00010987,2]
[355492163,1741204241888,-501.72278432,0.00010987,2]
[355492165,1741204241904,-899.48,0.00010987,2]
[355492167,1741204241914,-500.0,0.00010987,2]
[355492168,1741204241923,-500.0,0.00010987,2]
[355492170,1741204241933,-648.91,0.00010987,2]
[355492172,1741204241942,-1082.85,0.00010987,2]
[355492174,1741204241954,-500.0,0.00010987,2]
[355492176,1741204241964,-502.03633379,0.00010987,2]
[355492178,1741204241974,-500.0,0.00010987,2]
[355492180,1741204241984,-813.77,0.00010987,2]
[355492182,1741204241995,-505.84690666,0.00010987,2]
[355492184,1741204242008,-1783.68,0.00010987,2]
[355492186,1741204242017,-500.0,0.00010987,2]